{"text_format":"3","workbook":"xlsx","n_sheets":3,"sheets":["Start","Månatlig studiebudget","diagram_beräkningar"],"not_rendered":{"charts":4,"defined_names":19},"read":"whole","date_system":"1900"}

{"sheet":"Start","index":0,"n_rows":7,"n_cols":2,"rows_kept":7}
[null,"OM DEN HÄR MALLEN"]
[null,"Använd kalkylbladet Månatlig studiebudget för att hålla reda på inkomster, utgifter och kassaflöde."]
[null,"Ange månadsinkomster och -utgifter för att beräkna summa inkomster och utgifter."]
[null,"kassaflöde beräknas automatiskt och diagrammet över kassaflöde uppdateras åt dig."]
[null,"Välj skjutreglaget för få diagram över inkomster, utgifter och kassaflöde för en månad och ett år."]
[null,"Obs! "]
[null,"Ytterligare anvisningar finns i kolumn A i kalkylbladet. Den här texten har avsiktligt dolts. Om du vill ta bort texten markerar du kolumn A och väljer sedan TA BORT. Om du vill visa texten markerar du kolumn A och ändrar sedan teckenfärg."]

{"sheet":"Månatlig studiebudget","index":1,"n_rows":72,"n_cols":16,"rows_kept":72,"merged":[[5,1,14,3],[5,4,14,11],[5,12,13,15],[15,1,19,15],[20,1,21,15]]}
["Skapa en månatlig studiebudget i det här kalkylbladet. Kalkylbladets titel finns i cellen till höger och i cell B1. Anvisningar för hur du använder det här kalkylbladet finns i cellerna i den här kolumnen. Fler anvisningar finns i cell A4.","Månatlig studiebudget"]
[]
[]
["Etiketten Inkomster finns i cellen till höger, etiketten Utgifter finns i cell E4 och etiketten Kassaflöde i cell M4.",{"$f":"diagram_beräkningar!$D$6","v":"inkomst i january:"},null,null,{"$f":"diagram_beräkningar!$D$7","v":"utgifter i january:"},{"$nulls":7},{"$f":"diagram_beräkningar!$D$8","v":"kassaflöde january:"}]
["Inkomster uppdateras automatiskt i cellen till höger, utgifter i cell E5 och kassaflöde i M5.",{"$f":"\" \"&diagram_beräkningar!$F$6","v":" 12 25 kr"},null,null,{"$f":"\" \"&diagram_beräkningar!$F$7","v":" 10 56 kr"},{"$nulls":7},{"$f":"\" \"&diagram_beräkningar!$F$8","v":" 169 kr"}]
["Ringdiagram som visar inkomstöversikt i cellen till höger, utgiftsöversikt i cell E6 och stapeldiagram som visar positivt och negativt kassaflöde i cell M6 uppdateras automatiskt. Fler anvisningar finns i cell A17.","Ringdiagram som visar inkomstöversikt för vald månad eller valt år finns i den här cellen.",null,null,"Ringdiagram som visar utgiftsöversikt för vald månad eller valt år finns i den här cellen.",{"$nulls":7},"Stapeldiagram som visar det positiva och negativa kassaflödet för vald månad eller valt år finns i den här cellen."]
{"$rows_empty":9}
[null,"Linjediagram som visar kassaflödet för vald månad eller valt år finns i den här cellen."]
["Linjediagram för kassaflöde finns i cellen till höger. Fler anvisningar finns i cell A21."]
[]
[]
[]
["Välj skjutreglaget till höger för att få månadsvisa eller årsvisa data och diagram för inkomster, utgifter och kassaflöde. Fler anvisningar finns i cell A25.","Skjutreglage finns i den här cellen."]
[]
[]
[]
["Välj Månad i cellen till höger. Tryck på ALT+NEDÅTPIL för att se alternativen och sedan NEDÅTPIL och RETUR för att välja alternativ.","JAN"]
["Vald period uppdateras automatiskt i cell P26.",{"$nulls":14},{"$f":"ValdPeriod","v":"JAN "}]
["Etiketter finns på den här raden, etiketten Månadskassa efter utgifter i cellen till höger, månader i cell C27 till N27, år i O27 och ökning i procent i P27.","Månadskassa efter utgifter",{"$f":"FörstaMånaden","v":"JAN "},{"$f":"NästaMånad","v":"FEB "},"MAR ","APR ","MAY ","JUN ","JUL ","AUG ","SEP ","OCT ","NOV ","DEC ","ÅR  ","ÖKN % "]
["Etiketten Kassaflöde finns i cellen till höger. Kassaflöde för varje månad beräknas automatiskt i cell C28 till N28, årsbelopp i O28 och ökning i procent i P28. Miniatyrdiagram uppdateras i cell Q28.","Kassaflöde",{"$f":"C37-C72","v":169},69,192,199,204,{"v":-771,"d":"-771 "},124,154,{"v":-721,"d":"-721 "},109,34,{"v":-61,"d":"-61 "},{"$f":"SUM(C28:N28)","v":{"v":-299,"d":"-299 "}},{"$f":"INDEX($C28:$O28,,ValdPeriodKolumn)/INDEX($C$37:$O$37,,ValdPeriodKolumn)","v":{"v":0.13795918367346938,"d":"13.8%"}}]
["Etiketten Ackumulerat kassaflöde finns i cellen till höger. Ackumulerat kassaflöde för varje månad beräknas automatiskt i cell C30 till N29, årsbelopp i O29 och ökning i procent i P29. Miniatyrdiagram uppdateras i cell Q29. Fler anvisningar finns i cell A31.","Ackumulerat kassaflöde",{"$f":"SUM($C$28:C$28)","v":169},{"$f":"SUM($C$28:D$28)","v":238},{"$f":"SUM($C$28:E$28)","v":430},{"$f":"SUM($C$28:F$28)","v":629},{"$f":"SUM($C$28:G$28)","v":833},{"$f":"SUM($C$28:H$28)","v":62},{"$f":"SUM($C$28:I$28)","v":186},{"$f":"SUM($C$28:J$28)","v":340},{"$f":"SUM($C$28:K$28)","v":{"v":-381,"d":"-381 "}},{"$f":"SUM($C$28:L$28)","v":{"v":-272,"d":"-272 "}},{"$f":"SUM($C$28:M$28)","v":{"v":-238,"d":"-238 "}},{"$f":"SUM($C$28:N$28)","v":{"v":-299,"d":"-299 "}}]
[]
["Etiketten Månadsinkomst finns i cellen till höger, månader i cell C31 till N31, år i O31 och etiketten Ökning i procent i P31. Ange poster för månadsinkomst i cell B32 till B36 och månadsbelopp i cell C32 till N36. Årsinkomsten beräknas automatiskt i cell O32 till O36 och ökning i procent i cell P32 till P36. Fler anvisningar finns i cell A37.","MÅNADSINKOMST",{"$f":"FörstaMånaden","v":"JAN "},{"$f":"NästaMånad","v":"FEB "},"MAR ","APR ","MAY ","JUN ","JUL ","AUG ","SEP ","OCT ","NOV ","DEC ","ÅR  ","ÖKN % "]
[null,"Ekonomiskt stöd (anslag, stipendier, lån) som betalas ut till dig",0,0,750,750,750,750,750,750,750,750,750,750,{"$f":"SUM(C32:N32)","v":{"v":7500,"d":"7,500"}},{"$f":"INDEX($C32:$O32,,ValdPeriodKolumn)/INDEX($C$37:$O$37,,ValdPeriodKolumn)","v":{"v":0,"d":"0.0%"}}]
[null,"Lön efter skatt från ett jobb",450,450,450,450,450,450,450,450,550,350,350,350,{"v":5200,"d":"5,200"},{"$f":"INDEX($C33:$O33,,ValdPeriodKolumn)/INDEX($C$37:$O$37,,ValdPeriodKolumn)","v":{"v":0.3673469387755102,"d":"36.7%"}}]
[null,"Ekonomisk hjälp från familjen",200,200,{"v":1000,"d":"1,000"},350,350,350,350,350,350,350,350,350,{"v":4550,"d":"4,550"},{"$f":"INDEX($C34:$O34,,ValdPeriodKolumn)/INDEX($C$37:$O$37,,ValdPeriodKolumn)","v":{"v":0.16326530612244897,"d":"16.3%"}}]
[null,"Uttag från sparande",500,350,150,0,0,0,0,0,0,0,0,0,{"v":1000,"d":"1,000"},{"$f":"INDEX($C35:$O35,,ValdPeriodKolumn)/INDEX($C$37:$O$37,,ValdPeriodKolumn)","v":{"v":0.40816326530612246,"d":"40.8%"}}]
[null,"Övrigt (underhållsbidrag, ekonomiskt bistånd, gåvor osv.)",75,75,75,75,75,75,75,75,75,75,75,75,900,{"$f":"INDEX($C36:$O36,,ValdPeriodKolumn)/INDEX($C$37:$O$37,,ValdPeriodKolumn)","v":{"v":0.061224489795918366,"d":"6.1%"}}]
["Etiketten Summa inkomster finns i cellen till höger. Summa inkomster för varje månad beräknas automatiskt i cell C37 till N37, årsinkomst i O37 och ökning i procent i P37. Miniatyrdiagram uppdateras i cell Q37. Fler anvisningar finns i cell A39.","SUMMA INKOMSTER",{"$f":"SUM(C32:C36)","v":{"v":1225,"d":"1,225"}},{"v":1075,"d":"1,075"},{"v":2425,"d":"2,425"},{"v":1625,"d":"1,625"},{"v":1625,"d":"1,625"},{"v":1625,"d":"1,625"},{"v":1625,"d":"1,625"},{"v":1625,"d":"1,625"},{"v":1725,"d":"1,725"},{"v":1525,"d":"1,525"},{"v":1525,"d":"1,525"},{"v":1525,"d":"1,525"},{"v":19150,"d":"19,150"},{"$f":"INDEX($C37:$O37,,ValdPeriodKolumn)/INDEX($C$37:$O$37,,ValdPeriodKolumn)","v":{"v":1,"d":"100.0%"}}]
[]
["Etiketten Månadsutgift finns i cellen till höger, månader i cell C39 till N39, år i O39 och etiketten Ökning i procent i P39.","MÅNADSUTGIFT",{"$f":"FörstaMånaden","v":"JAN "},{"$f":"NästaMånad","v":"FEB "},"MAR ","APR ","MAY ","JUN ","JUL ","AUG ","SEP ","OCT ","NOV ","DEC ","ÅR  ","ÖKN % "]
["Ange eller ändra utgiftspost i cellen till höger och månadsbelopp i cell C40 till N43. Årsbelopp beräknas automatiskt i cell O40 till O43 och ökning i procent i cell P40 till P43. Miniatyrdiagram uppdateras i cell Q40. Fler anvisningar finns i cell A45.","Mat och husrum",{"$f":"SUM(C41:C43)","v":565},565,565,565,565,565,565,565,565,565,565,565,{"$f":"SUM(C40:N40)","v":{"v":6780,"d":"6,780"}},{"$f":"INDEX($C40:$O40,,ValdPeriodKolumn)/INDEX($C$72:$O$72,,ValdPeriodKolumn)","v":{"v":0.5350378787878788,"d":"53.5%"}}]
[null,null,315,315,315,315,315,315,315,315,315,315,315,315,{"$f":"SUM(C41:N41)","v":{"v":3780,"d":"3,780"}},{"$f":"INDEX($C41:$O41,,ValdPeriodKolumn)/INDEX($C$72:$O$72,,ValdPeriodKolumn)","v":{"v":0.29829545454545453,"d":"29.8%"}}]
[null,null,200,200,200,200,200,200,200,200,200,200,200,200,{"$f":"SUM(C42:N42)","v":{"v":2400,"d":"2,400"}},{"$f":"INDEX($C42:$O42,,ValdPeriodKolumn)/INDEX($C$72:$O$72,,ValdPeriodKolumn)","v":{"v":0.1893939393939394,"d":"18.9%"}}]
[null,null,50,50,50,50,50,50,50,50,50,50,50,50,{"$f":"SUM(C43:N43)","v":600},{"$f":"INDEX($C43:$O43,,ValdPeriodKolumn)/INDEX($C$72:$O$72,,ValdPeriodKolumn)","v":{"v":0.04734848484848485,"d":"4.7%"}}]
[]
["Ange eller ändra utgiftspost i cellen till höger och månadsbelopp i cell C45 till N47. Årsbelopp beräknas automatiskt i cell O45 till O47 och ökning i procent i cell P45 till P47. Miniatyrdiagram uppdateras i cell Q47. Fler anvisningar finns i cell A49.","Skolavgifter och avgifter",{"$f":"SUM(C46:C47)","v":0},0,750,0,0,650,0,0,650,0,0,0,{"$f":"SUM(C45:N45)","v":{"v":2050,"d":"2,050"}},{"$f":"INDEX($C45:$O45,,ValdPeriodKolumn)/INDEX($C$72:$O$72,,ValdPeriodKolumn)","v":{"v":0,"d":"0.0%"}}]
[null,null,0,0,500,0,0,500,0,0,500,0,0,0,{"$f":"SUM(C46:N46)","v":{"v":1500,"d":"1,500"}},{"$f":"INDEX($C46:$O46,,ValdPeriodKolumn)/INDEX($C$72:$O$72,,ValdPeriodKolumn)","v":{"v":0,"d":"0.0%"}}]
[null,null,0,0,250,0,0,150,0,0,150,0,0,0,{"$f":"SUM(C47:N47)","v":550},{"$f":"INDEX($C47:$O47,,ValdPeriodKolumn)/INDEX($C$72:$O$72,,ValdPeriodKolumn)","v":{"v":0,"d":"0.0%"}}]
[]
["Ange eller ändra utgiftspost i cellen till höger och månadsbelopp i cell C49 till N51. Årsbelopp beräknas automatiskt i cell O49 till O51 och ökning i procent i cell P49 till P51. Miniatyrdiagram uppdateras i cell Q49. Fler anvisningar finns i cell A53.","Böcker och material",{"$f":"SUM(C50:C51)","v":0},0,325,20,20,325,10,10,400,15,15,15,{"$f":"SUM(C49:N49)","v":{"v":1155,"d":"1,155"}},{"$f":"INDEX($C49:$O49,,ValdPeriodKolumn)/INDEX($C$72:$O$72,,ValdPeriodKolumn)","v":{"v":0,"d":"0.0%"}}]
[null,null,0,0,225,0,0,275,0,0,325,0,0,0,{"$f":"SUM(C50:N50)","v":825},{"$f":"INDEX($C50:$O50,,ValdPeriodKolumn)/INDEX($C$72:$O$72,,ValdPeriodKolumn)","v":{"v":0,"d":"0.0%"}}]
[null,null,0,0,100,20,20,50,10,10,75,15,15,15,{"$f":"SUM(C51:N51)","v":330},{"$f":"INDEX($C51:$O51,,ValdPeriodKolumn)/INDEX($C$72:$O$72,,ValdPeriodKolumn)","v":{"v":0,"d":"0.0%"}}]
[]
["Ange eller ändra utgiftspost i cellen till höger och månadsbelopp i cell C53 till N57. Årsbelopp beräknas automatiskt i cell O53 till O57 och ökning i procent i cell P53 till P57. Miniatyrdiagram uppdateras i cell Q53. Fler anvisningar finns i cell A59.","Transport",{"$f":"SUM(C54:C57)","v":224},174,174,219,174,174,274,219,174,174,224,269,{"$f":"SUM(C53:N53)","v":{"v":2473,"d":"2,473"}},{"$f":"INDEX($C53:$O53,,ValdPeriodKolumn)/INDEX($C$72:$O$72,,ValdPeriodKolumn)","v":{"v":0.21212121212121213,"d":"21.2%"}}]
[null,null,30,30,30,75,30,30,30,75,30,30,30,75,{"$f":"SUM(C54:N54)","v":495},{"$f":"INDEX($C54:$O54,,ValdPeriodKolumn)/INDEX($C$72:$O$72,,ValdPeriodKolumn)","v":{"v":0.028409090909090908,"d":"2.8%"}}]
[null,null,129,129,129,129,129,129,129,129,129,129,129,129,{"$f":"SUM(C55:N55)","v":{"v":1548,"d":"1,548"}},{"$f":"INDEX($C55:$O55,,ValdPeriodKolumn)/INDEX($C$72:$O$72,,ValdPeriodKolumn)","v":{"v":0.12215909090909091,"d":"12.2%"}}]
[null,null,15,15,15,15,15,15,15,15,15,15,15,15,{"$f":"SUM(C56:N56)","v":180},{"$f":"INDEX($C56:$O56,,ValdPeriodKolumn)/INDEX($C$72:$O$72,,ValdPeriodKolumn)","v":{"v":0.014204545454545454,"d":"1.4%"}}]
[null,null,50,0,0,0,0,0,100,0,0,0,50,50,{"$f":"SUM(C57:N57)","v":250},{"$f":"INDEX($C57:$O57,,ValdPeriodKolumn)/INDEX($C$72:$O$72,,ValdPeriodKolumn)","v":{"v":0.04734848484848485,"d":"4.7%"}}]
[]
["Ange eller ändra utgiftspost i cellen till höger och månadsbelopp i cell C59 till N65. Årsbelopp beräknas automatiskt i cell O59 till O65 och ökning i procent i cell P59 till P65. Miniatyrdiagram uppdateras i cell Q59. Fler anvisningar finns i cell A67.","Övrigt",{"$f":"SUM(C60:C65)","v":69},69,169,369,419,444,419,419,394,394,419,469,{"$f":"SUM(C59:N59)","v":{"v":4053,"d":"4,053"}},{"$f":"INDEX($C59:$O59,,ValdPeriodKolumn)/INDEX($C$72:$O$72,,ValdPeriodKolumn)","v":{"v":0.06534090909090909,"d":"6.5%"}}]
[null,null,0,0,0,50,100,100,100,100,75,75,100,100,800,{"$f":"INDEX($C60:$O60,,ValdPeriodKolumn)/INDEX($C$72:$O$72,,ValdPeriodKolumn)","v":{"v":0,"d":"0.0%"}}]
[null,null,69,69,69,69,69,69,69,69,69,69,69,69,828,{"$f":"INDEX($C61:$O61,,ValdPeriodKolumn)/INDEX($C$72:$O$72,,ValdPeriodKolumn)","v":{"v":0.06534090909090909,"d":"6.5%"}}]
[null,null,0,0,0,0,0,25,0,0,0,0,0,50,75,{"$f":"INDEX($C62:$O62,,ValdPeriodKolumn)/INDEX($C$72:$O$72,,ValdPeriodKolumn)","v":{"v":0,"d":"0.0%"}}]
[null,null,0,0,100,100,100,100,100,100,100,100,100,100,{"v":1000,"d":"1,000"},{"$f":"INDEX($C63:$O63,,ValdPeriodKolumn)/INDEX($C$72:$O$72,,ValdPeriodKolumn)","v":{"v":0,"d":"0.0%"}}]
[null,null,0,0,0,50,50,50,50,50,50,50,50,50,450,{"$f":"INDEX($C64:$O64,,ValdPeriodKolumn)/INDEX($C$72:$O$72,,ValdPeriodKolumn)","v":{"v":0,"d":"0.0%"}}]
[null,null,0,0,0,100,100,100,100,100,100,100,100,100,900,{"$f":"INDEX($C65:$O65,,ValdPeriodKolumn)/INDEX($C$72:$O$72,,ValdPeriodKolumn)","v":{"v":0,"d":"0.0%"}}]
[]
["Ange eller ändra utgiftspost i cellen till höger och månadsbelopp i cell C67 till N70. Årsbelopp beräknas automatiskt i cell O67 till O70 och ökning i procent i cell P67 till P70. Miniatyrdiagram uppdateras i cell Q67. Fler anvisningar finns i cell A72.","Övriga utgifter",{"$f":"SUM(C68:C70)","v":198},{"$f":"SUM(D68:D70)","v":198},250,253,243,238,233,258,263,268,268,268,{"$f":"SUM(C67:N67)","v":{"v":2938,"d":"2,938"}},{"$f":"INDEX($C67:$O67,,ValdPeriodKolumn)/INDEX($C$72:$O$72,,ValdPeriodKolumn)","v":{"v":0.1875,"d":"18.8%"}}]
[null,null,123,123,123,123,123,123,123,123,123,123,123,123,{"$f":"SUM(C68:N68)","v":{"v":1476,"d":"1,476"}},{"$f":"INDEX($C68:$O68,,ValdPeriodKolumn)/INDEX($C$72:$O$72,,ValdPeriodKolumn)","v":{"v":0.11647727272727272,"d":"11.6%"}}]
[null,null,0,0,52,55,45,40,35,60,65,70,70,70,{"$f":"SUM(C69:N69)","v":562},{"$f":"INDEX($C69:$O69,,ValdPeriodKolumn)/INDEX($C$72:$O$72,,ValdPeriodKolumn)","v":{"v":0,"d":"0.0%"}}]
[null,null,75,75,75,75,75,75,75,75,75,75,75,75,{"$f":"SUM(C70:N70)","v":900},{"$f":"INDEX($C70:$O70,,ValdPeriodKolumn)/INDEX($C$72:$O$72,,ValdPeriodKolumn)","v":{"v":0.07102272727272728,"d":"7.1%"}}]
[]
["Etiketten Summa utgifter finns i cellen till höger. Summa utgifter för varje månad beräknas automatiskt i cell C72 till N72, årsutgifter i O72 och ökning i procent i P72. Miniatyrdiagram uppdateras i cell Q72.","SUMMA UTGIFTER",{"$f":"SUM(C40,C45,C49,C53,C59,C67)","v":{"v":1056,"d":"1,056"}},{"v":1006,"d":"1,006"},{"v":2233,"d":"2,233"},{"v":1426,"d":"1,426"},{"v":1421,"d":"1,421"},{"v":2396,"d":"2,396"},{"v":1501,"d":"1,501"},{"v":1471,"d":"1,471"},{"v":2446,"d":"2,446"},{"v":1416,"d":"1,416"},{"v":1491,"d":"1,491"},{"v":1586,"d":"1,586"},{"$f":"SUM(C72:N72)","v":{"v":19449,"d":"19,449"}},{"$f":"INDEX($C72:$O72,,ValdPeriodKolumn)/INDEX($C$72:$O$72,,ValdPeriodKolumn)","v":{"v":1,"d":"100.0%"}}]

{"sheet":"diagram_beräkningar","index":2,"n_rows":23,"n_cols":16,"rows_kept":23,"hidden":true}
["***Det här bladet ska vara DOLT***"]
[]
[{"$nulls":3},{"$f":"IFERROR(LOWER(TEXT(VALUE(ValdPeriod&\" 1\"),\"MMMM\")),\"år\")","v":"january"}]
[]
[{"$nulls":3},"Rubriker för dynamiskt diagram"]
[{"$nulls":3},{"$f":"\"inkomst i \"&D3&\":\"","v":"inkomst i january:"},null,{"$f":"TEXT(INDEX('Månatlig studiebudget'!$C$37:$O$37,,ValdPeriodKolumn),\"# ## kr\")","v":"12 25 kr"}]
[{"$nulls":3},{"$f":"\"utgifter i \"&D3&\":\"","v":"utgifter i january:"},null,{"$f":"TEXT(INDEX('Månatlig studiebudget'!$C$72:$O$72,,ValdPeriodKolumn),\"# ## kr\")","v":"10 56 kr"}]
[{"$nulls":3},{"$f":"\"kassaflöde \"&D3&\":\"","v":"kassaflöde january:"},{"$f":"INDEX('Månatlig studiebudget'!C28:O28,RullningslistVärde)","v":169},{"$f":"TEXT(E8,\"# ## kr\")","v":"169 kr"}]
[]
[]
[]
[{"$nulls":3},{"$f":"LOWER('Månatlig studiebudget'!C27)","v":"jan "},{"$f":"LOWER('Månatlig studiebudget'!D27)","v":"feb "},{"$f":"LOWER('Månatlig studiebudget'!E27)","v":"mar "},{"$f":"LOWER('Månatlig studiebudget'!F27)","v":"apr "},{"$f":"LOWER('Månatlig studiebudget'!G27)","v":"may "},{"$f":"LOWER('Månatlig studiebudget'!H27)","v":"jun "},{"$f":"LOWER('Månatlig studiebudget'!I27)","v":"jul "},{"$f":"LOWER('Månatlig studiebudget'!J27)","v":"aug "},{"$f":"LOWER('Månatlig studiebudget'!K27)","v":"sep "},{"$f":"LOWER('Månatlig studiebudget'!L27)","v":"oct "},{"$f":"LOWER('Månatlig studiebudget'!M27)","v":"nov "},{"$f":"LOWER('Månatlig studiebudget'!N27)","v":"dec "},{"$f":"LOWER('Månatlig studiebudget'!O27)","v":"år  "}]
[null,null,"Rullningslistvärde: ",1]
[null,null,"Kassaflödesdiagram: ",{"$f":"IF(ValdPeriod='Månatlig studiebudget'!C$31,IF('Månatlig studiebudget'!$C$28:$O$28>=0,'Månatlig studiebudget'!$C$28:$O$28,NA()),NA())","v":69},{"$f":"IF(ValdPeriod='Månatlig studiebudget'!D$31,IF('Månatlig studiebudget'!$C$28:$O$28>=0,'Månatlig studiebudget'!$C$28:$O$28,NA()),NA())","v":{"$error":"#N/A"}},{"$f":"IF(ValdPeriod='Månatlig studiebudget'!E$31,IF('Månatlig studiebudget'!$C$28:$O$28>=0,'Månatlig studiebudget'!$C$28:$O$28,NA()),NA())","v":{"$error":"#N/A"}},{"$f":"IF(ValdPeriod='Månatlig studiebudget'!F$31,IF('Månatlig studiebudget'!$C$28:$O$28>=0,'Månatlig studiebudget'!$C$28:$O$28,NA()),NA())","v":{"$error":"#N/A"}},{"$f":"IF(ValdPeriod='Månatlig studiebudget'!G$31,IF('Månatlig studiebudget'!$C$28:$O$28>=0,'Månatlig studiebudget'!$C$28:$O$28,NA()),NA())","v":{"$error":"#N/A"}},{"$f":"IF(ValdPeriod='Månatlig studiebudget'!H$31,IF('Månatlig studiebudget'!$C$28:$O$28>=0,'Månatlig studiebudget'!$C$28:$O$28,NA()),NA())","v":{"$error":"#N/A"}},{"$f":"IF(ValdPeriod='Månatlig studiebudget'!I$31,IF('Månatlig studiebudget'!$C$28:$O$28>=0,'Månatlig studiebudget'!$C$28:$O$28,NA()),NA())","v":{"$error":"#N/A"}},{"$f":"IF(ValdPeriod='Månatlig studiebudget'!J$31,IF('Månatlig studiebudget'!$C$28:$O$28>=0,'Månatlig studiebudget'!$C$28:$O$28,NA()),NA())","v":{"$error":"#N/A"}},{"$f":"IF(ValdPeriod='Månatlig studiebudget'!K$31,IF('Månatlig studiebudget'!$C$28:$O$28>=0,'Månatlig studiebudget'!$C$28:$O$28,NA()),NA())","v":{"$error":"#N/A"}},{"$f":"IF(ValdPeriod='Månatlig studiebudget'!L$31,IF('Månatlig studiebudget'!$C$28:$O$28>=0,'Månatlig studiebudget'!$C$28:$O$28,NA()),NA())","v":{"$error":"#N/A"}},{"$f":"IF(ValdPeriod='Månatlig studiebudget'!M$31,IF('Månatlig studiebudget'!$C$28:$O$28>=0,'Månatlig studiebudget'!$C$28:$O$28,NA()),NA())","v":{"$error":"#N/A"}},{"$f":"IF(ValdPeriod='Månatlig studiebudget'!N$31,IF('Månatlig studiebudget'!$C$28:$O$28>=0,'Månatlig studiebudget'!$C$28:$O$28,NA()),NA())","v":{"$error":"#N/A"}},{"$f":"IF(ValdPeriod='Månatlig studiebudget'!O$31,IF('Månatlig studiebudget'!$C$28:$O$28>=0,'Månatlig studiebudget'!$C$28:$O$28,NA()),NA())","v":{"$error":"#N/A"}}]
[null,null,"Ackumulerat: ",{"$f":"IF(ValdPeriod='Månatlig studiebudget'!C$31,IF('Månatlig studiebudget'!$C$28:$O$28<0,'Månatlig studiebudget'!$C$28:$O$28,NA()),NA())","v":{"$error":"#N/A"}},{"$f":"IF(ValdPeriod='Månatlig studiebudget'!D$31,IF('Månatlig studiebudget'!$C$28:$O$28<0,'Månatlig studiebudget'!$C$28:$O$28,NA()),NA())","v":{"$error":"#N/A"}},{"$f":"IF(ValdPeriod='Månatlig studiebudget'!E$31,IF('Månatlig studiebudget'!$C$28:$O$28<0,'Månatlig studiebudget'!$C$28:$O$28,NA()),NA())","v":{"$error":"#N/A"}},{"$f":"IF(ValdPeriod='Månatlig studiebudget'!F$31,IF('Månatlig studiebudget'!$C$28:$O$28<0,'Månatlig studiebudget'!$C$28:$O$28,NA()),NA())","v":{"$error":"#N/A"}},{"$f":"IF(ValdPeriod='Månatlig studiebudget'!G$31,IF('Månatlig studiebudget'!$C$28:$O$28<0,'Månatlig studiebudget'!$C$28:$O$28,NA()),NA())","v":{"$error":"#N/A"}},{"$f":"IF(ValdPeriod='Månatlig studiebudget'!H$31,IF('Månatlig studiebudget'!$C$28:$O$28<0,'Månatlig studiebudget'!$C$28:$O$28,NA()),NA())","v":{"$error":"#N/A"}},{"$f":"IF(ValdPeriod='Månatlig studiebudget'!I$31,IF('Månatlig studiebudget'!$C$28:$O$28<0,'Månatlig studiebudget'!$C$28:$O$28,NA()),NA())","v":{"$error":"#N/A"}},{"$f":"IF(ValdPeriod='Månatlig studiebudget'!J$31,IF('Månatlig studiebudget'!$C$28:$O$28<0,'Månatlig studiebudget'!$C$28:$O$28,NA()),NA())","v":{"$error":"#N/A"}},{"$f":"IF(ValdPeriod='Månatlig studiebudget'!K$31,IF('Månatlig studiebudget'!$C$28:$O$28<0,'Månatlig studiebudget'!$C$28:$O$28,NA()),NA())","v":{"$error":"#N/A"}},{"$f":"IF(ValdPeriod='Månatlig studiebudget'!L$31,IF('Månatlig studiebudget'!$C$28:$O$28<0,'Månatlig studiebudget'!$C$28:$O$28,NA()),NA())","v":{"$error":"#N/A"}},{"$f":"IF(ValdPeriod='Månatlig studiebudget'!M$31,IF('Månatlig studiebudget'!$C$28:$O$28<0,'Månatlig studiebudget'!$C$28:$O$28,NA()),NA())","v":{"$error":"#N/A"}},{"$f":"IF(ValdPeriod='Månatlig studiebudget'!N$31,IF('Månatlig studiebudget'!$C$28:$O$28<0,'Månatlig studiebudget'!$C$28:$O$28,NA()),NA())","v":{"$error":"#N/A"}},{"$f":"IF(ValdPeriod='Månatlig studiebudget'!O$31,IF('Månatlig studiebudget'!$C$28:$O$28<0,'Månatlig studiebudget'!$C$28:$O$28,NA()),NA())","v":{"$error":"#N/A"}}]
[]
[]
[null,null,"INKOMSTDIAGRAMDATA"]
[null,null,"Ekonomiskt stöd (anslag, stipendier, lån) som betalas ut till dig",{"$f":"'Månatlig studiebudget'!P32","v":{"v":0,"d":"0.0%"}}]
[null,null,"Lön efter skatt från ett jobb",{"$f":"'Månatlig studiebudget'!P33","v":{"v":0.3673469387755102,"d":"36.7%"}}]
[null,null,"Ekonomisk hjälp från familjen",{"$f":"'Månatlig studiebudget'!P34","v":{"v":0.16326530612244897,"d":"16.3%"}}]
[null,null,"Uttag från sparande",{"$f":"'Månatlig studiebudget'!P35","v":{"v":0.40816326530612246,"d":"40.8%"}}]
[null,null,"Övrigt (underhållsbidrag, ekonomiskt bistånd, gåvor osv.)",{"$f":"'Månatlig studiebudget'!P36","v":{"v":0.061224489795918366,"d":"6.1%"}}]